fUST/lending_fUST_20251010
["ID","MTS","AMOUNT","RATE_DAILY","PERIOD"]
[390527306,1760073049771,-151.0,0.00016711,2]
[390527307,1760073049781,-153.085781,0.00016711,2]
[390527308,1760073049790,-151.0,0.00016711,2]
[390527309,1760073049799,-245.798995,0.00016711,2]
[390527310,1760073049808,-151.0,0.00016711,2]
[390527311,1760073049818,-200.0,0.00016711,2]
[390527312,1760073049827,-151.0,0.00016711,2]
[390527313,1760073049837,-151.0,0.00016711,2]
[390527314,1760073049846,-151.0,0.00016711,2]
[390527315,1760073049854,-186.21259921,0.00016711,2]
[390527316,1760073049863,-151.0,0.00016712,2]
[390527317,1760073049872,-1519.0,0.00016712,2]
[390527318,1760073049882,-199.63242529,0.00016712,2]
[390527319,1760073049891,-151.0,0.00016712,2]
[390527320,1760073049900,-500.0,0.00016712,2]
[390527321,1760073049909,-500.0,0.00016712,2]
[390527322,1760073049918,-500.0,0.00016712,2]
[390527323,1760073049927,-500.0,0.00016712,2]
[390527324,1760073049936,-500.0,0.00016712,2]
[390527325,1760073049945,-500.0,0.00016712,2]
[390527326,1760073049954,-482.27098122,0.00016712,2]
[390527327,1760073049963,-501.39167991,0.00016712,2]
[390527328,1760073049972,-500.0,0.00016712,2]
[390527329,1760073049981,-503.10646988,0.00016712,2]
[390527330,1760073049991,-500.0,0.00016712,2]
[390527331,1760073050000,-500.0,0.00016712,2]
[390527332,1760073050009,-500.0,0.00016712,2]
[390527333,1760073050019,-500.0,0.00016712,2]
[390527334,1760073050028,-500.0,0.00016712,2]
[390527335,1760073050037,-896.78,0.00016712,2]
[390527336,1760073050163,-500.0,0.00016712,2]
[390527337,1760073050189,-1025.52,0.00016712,2]
[390527338,1760073050198,-152.507168,0.00016712,2]
[390527339,1760073050208,-500.0,0.00016712,2]
[390527340,1760073050217,-500.0,0.00016712,2]
[390527341,1760073050226,-500.0,0.00016712,2]
[390527342,1760073050236,-500.0,0.00016712,2]
[390527343,1760073050246,-500.0,0.00016712,2]
[390527344,1760073050256,-500.0,0.00016712,2]
[390527345,1760073050265,-500.0,0.00016712,2]
[390527346,1760073050274,-500.0,0.00016712,2]
[390527347,1760073050284,-500.0,0.00016712,2]
[390527348,1760073050293,-512.41,0.00016712,2]
[390527349,1760073050301,-500.0,0.00016712,2]
[390527350,1760073050311,-500.0,0.00016712,2]
[390527351,1760073050320,-151.0,0.00016712,2]
[390527352,1760073050329,-500.0,0.00016712,2]
[390527353,1760073050338,-500.0,0.00016712,2]
[390527354,1760073050347,-500.0,0.00016712,2]
[390527355,1760073050356,-500.0,0.00016712,2]
[390527356,1760073050365,-359.67318463,0.00016712,2]
[390527357,1760073050376,-500.0,0.00016712,2]
[390527358,1760073050384,-510.21595832,0.00016712,2]
[390527359,1760073050393,-500.0,0.00016712,2]
[390527360,1760073050402,-500.0,0.00016712,2]
[390527361,1760073050411,-500.0,0.00016712,2]
[390527362,1760073050420,-500.0,0.00016712,2]
[390527363,1760073050429,-500.0,0.00016712,2]
[390527364,1760073050438,-500.0,0.00016712,2]
[390527365,1760073050447,-502.13180974,0.00016712,2]
[390527366,1760073050456,-500.0,0.00016712,2]
[390527367,1760073050465,-500.0,0.00016712,2]
[390527368,1760073050474,-613.47,0.00016712,2]
[390527369,1760073050483,-500.0,0.00016712,2]
[390527370,1760073050492,-500.0,0.00016712,2]
[390527371,1760073050501,-500.0,0.00016712,2]
[390527372,1760073050510,-500.0,0.00016712,2]
[390527373,1760073050519,-500.0,0.00016712,2]
[390527374,1760073050528,-500.0,0.00016712,2]
[390527375,1760073050537,-843.94,0.00016712,2]
[390527376,1760073050547,-500.0,0.00016712,2]
[390527377,1760073050555,-500.61,0.00016712,2]
[390527378,1760073050564,-500.0,0.00016712,2]
[390527379,1760073050574,-500.0,0.00016712,2]
[390527380,1760073050583,-200.0,0.00016712,2]
[390527381,1760073050592,-500.0,0.00016712,2]
[390527382,1760073050604,-500.0,0.00016712,2]
[390527383,1760073050613,-500.0,0.00016712,2]
[390527384,1760073050622,-500.0,0.00016712,2]
[390527385,1760073050631,-500.0,0.00016712,2]
[390527386,1760073050641,-500.0,0.00016712,2]
[390527387,1760073050651,-502.30765809,0.00016712,2]
[390527388,1760073050659,-529.78508243,0.00016712,2]
[390527389,1760073050668,-500.0,0.00016712,2]
[390527390,1760073050679,-500.0,0.00016712,2]
[390527391,1760073050688,-500.0,0.00016712,2]
[390527392,1760073050697,-500.0,0.00016712,2]
[390527393,1760073050706,-1212.98,0.00016712,2]
[390527394,1760073050715,-481.71365748,0.00016712,2]
[390527395,1760073050726,-500.0,0.00016712,2]
[390527396,1760073050735,-500.0,0.00016712,2]
[390527397,1760073050744,-500.0,0.00016712,2]
[390527398,1760073050753,-500.99212781,0.00016712,2]
[390527399,1760073050762,-500.0,0.00016712,2]
[390527400,1760073050771,-500.0,0.00016712,2]
[390527401,1760073050780,-502.25975422,0.00016712,2]
[390527402,1760073050789,-500.0,0.00016712,2]
[390527403,1760073050798,-500.0,0.00016712,2]
[390527404,1760073050807,-500.0,0.00016712,2]
[390527405,1760073050816,-500.0,0.00016712,2]
[390527406,1760073050827,-500.0,0.00016712,2]
[390527407,1760073050836,-500.0,0.00016712,2]
[390527408,1760073050846,-500.0,0.00016712,2]
[390527409,1760073050856,-477.73133279,0.00016712,2]
[390527410,1760073050865,-500.0,0.00016712,2]
[390527411,1760073050874,-500.0,0.00016712,2]
[390527412,1760073050884,-500.0,0.00016712,2]
[390527413,1760073050893,-349.14356947,0.00016712,2]
[390527414,1760073050903,-500.0,0.00016712,2]
[390527415,1760073050912,-500.0,0.00016712,2]
[390527416,1760073050921,-502.14845717,0.00016712,2]
[390527417,1760073050930,-500.0,0.00016712,2]
[390527418,1760073050939,-500.0,0.00016712,2]
[390527419,1760073050949,-500.0,0.00016712,2]
[390527420,1760073050958,-500.0,0.00016712,2]
[390527421,1760073050967,-1092.88,0.00016712,2]
[390527422,1760073050976,-500.0,0.00016712,2]
[390527423,1760073050985,-500.0,0.00016712,2]
[390527424,1760073050994,-500.0,0.00016712,2]
[390527425,1760073051003,-500.0,0.00016712,2]
[390527426,1760073051013,-501.96365242,0.00016712,2]
[390527427,1760073051023,-500.0,0.00016712,2]
[390527428,1760073051033,-948.26,0.00016712,2]
[390527429,1760073051043,-500.0,0.00016712,2]
[390527430,1760073051052,-500.0,0.00016712,2]
[390527431,1760073051062,-500.0,0.00016712,2]
[390527432,1760073051071,-500.0,0.00016712,2]
[390527433,1760073051081,-500.0,0.00016712,2]
[390527434,1760073051090,-500.0,0.00016712,2]
[390527435,1760073051099,-500.0,0.00016712,2]
[390527436,1760073051108,-500.0,0.00016712,2]
[390527437,1760073051117,-500.0,0.00016712,2]
[390527438,1760073051127,-500.0,0.00016712,2]
[390527439,1760073051136,-500.0,0.00016712,2]
[390527440,1760073051145,-500.0,0.00016712,2]
[390527441,1760073051154,-500.0,0.00016712,2]
[390527442,1760073051162,-500.0,0.00016712,2]
[390527443,1760073051172,-501.49135415,0.00016712,2]
[390527444,1760073051181,-500.0,0.00016712,2]
[390527445,1760073051190,-500.0,0.00016712,2]
[390527446,1760073051198,-500.0,0.00016712,2]
[390527447,1760073051207,-500.0,0.00016712,2]
[390527448,1760073051216,-501.84305985,0.00016712,2]
[390527449,1760073051225,-500.0,0.00016712,2]
[390527450,1760073051235,-500.0,0.00016712,2]
[390527451,1760073051244,-500.0,0.00016712,2]
[390527452,1760073051253,-500.0,0.00016712,2]
[390527453,1760073051262,-502.16497774,0.00016712,2]
[390527454,1760073051271,-500.0,0.00016712,2]
[390527455,1760073051281,-500.0,0.00016712,2]
[390527456,1760073051290,-500.0,0.00016712,2]
[390527457,1760073051300,-500.0,0.00016712,2]
[390527458,1760073051309,-500.0,0.00016712,2]
[390527459,1760073051319,-500.0,0.00016712,2]
[390527460,1760073051328,-214.40020945,0.00016712,2]
[390527461,1760073051337,-500.0,0.00016712,2]
[390527462,1760073051347,-500.0,0.00016712,2]
[390527463,1760073051356,-500.0,0.00016712,2]
[390527464,1760073051366,-501.1665511,0.00016712,2]
[390527465,1760073051375,-500.0,0.00016712,2]
[390527466,1760073051384,-501.68338757,0.00016712,2]
[390527467,1760073051393,-500.0,0.00016712,2]
[390527468,1760073051402,-500.0,0.00016712,2]
[390527469,1760073051411,-500.0,0.00016712,2]
[390527470,1760073051419,-500.0,0.00016712,2]
[390527471,1760073051428,-500.0,0.00016712,2]
[390527472,1760073051437,-500.0,0.00016712,2]
[390527473,1760073051445,-500.0,0.00016712,2]
[390527474,1760073051454,-501.49770499,0.00016712,2]
[390527475,1760073051463,-500.0,0.00016712,2]
[390527476,1760073051472,-449.55092511,0.00016712,2]
[390527477,1760073051481,-500.0,0.00016712,2]
[390527478,1760073051492,-431.1009717,0.00016712,2]
[390527479,1760073051502,-500.0,0.00016712,2]
[390527480,1760073051512,-500.0,0.00016712,2]
[390527481,1760073051522,-422.07411172,0.00016712,2]
[390527482,1760073051531,-500.0,0.00016712,2]
[390527483,1760073051541,-501.39088506,0.00016712,2]
[390527484,1760073051551,-500.86317803,0.00016712,2]
[390527485,1760073051560,-502.07846543,0.00016712,2]
[390527486,1760073051570,-500.0,0.00016712,2]
[390527487,1760073051579,-500.0,0.00016712,2]
[390527488,1760073051589,-1300.53,0.00016712,2]
[390527489,1760073051603,-550.15,0.00016712,2]
[390527490,1760073051612,-1034.78,0.00016712,2]
[390527491,1760073051622,-500.63381307,0.00016712,2]
[390527492,1760073051631,-500.0,0.00016712,2]
[390527493,1760073051642,-500.0,0.00016712,2]
[390527494,1760073051651,-500.0,0.00016712,2]
[390527495,1760073051661,-500.0,0.00016712,2]
[390527496,1760073051671,-500.0,0.00016712,2]
[390527497,1760073051680,-500.0,0.00016712,2]
[390527498,1760073051690,-500.0,0.00016712,2]
[390527499,1760073051700,-7851.8,0.00016712,2]
[390527500,1760073051709,-500.0,0.00016712,2]
[390527501,1760073051719,-500.0,0.00016712,2]
[390527502,1760073051728,-500.0,0.00016712,2]
[390527503,1760073051743,-232.65951247,0.00016712,2]
[390527504,1760073051754,-501.37353305,0.00016712,2]
[390527505,1760073051763,-500.0,0.00016712,2]
[390527506,1760073051773,-500.0,0.00016712,2]
[390527507,1760073051783,-1314.09,0.00016712,2]
[390527508,1760073051793,-500.0,0.00016712,2]
[390527509,1760073051804,-500.0,0.00016712,2]
[390527510,1760073051815,-500.0,0.00016712,2]
[390527511,1760073051826,-501.72722017,0.00016712,2]
[390527512,1760073051837,-500.0,0.00016712,2]
[390527513,1760073051848,-500.0,0.00016712,2]
[390527514,1760073051857,-500.0,0.00016712,2]
[390527515,1760073051868,-500.0,0.00016712,2]
[390527516,1760073051878,-500.0,0.00016712,2]
[390527517,1760073051888,-500.0,0.00016712,2]
[390527518,1760073051899,-529.63,0.00016712,2]
[390527519,1760073051908,-500.0,0.00016712,2]
[390527520,1760073051918,-500.61482875,0.00016712,2]
[390527521,1760073051927,-500.0,0.00016712,2]
[390527522,1760073051937,-500.0,0.00016712,2]
[390527523,1760073051946,-500.0,0.00016712,2]
[390527524,1760073051955,-983.84,0.00016712,2]
[390527525,1760073051964,-502.65792864,0.00016712,2]
[390527526,1760073051973,-500.0,0.00016712,2]
[390527527,1760073051983,-500.0,0.00016712,2]
[390527528,1760073051994,-500.0,0.00016712,2]
[390527529,1760073052003,-502.91454748,0.00016712,2]
[390527530,1760073052012,-500.88673706,0.00016712,2]
[390527531,1760073052021,-500.0,0.00016712,2]
[390527532,1760073052030,-500.0,0.00016712,2]
[390527533,1760073052040,-422.54032191,0.00016712,2]
[390527534,1760073052050,-500.0,0.00016712,2]
[390527535,1760073052059,-501.2065231,0.00016712,2]
[390527536,1760073052068,-500.0,0.00016712,2]
[390527537,1760073052078,-500.0,0.00016712,2]
[390527538,1760073052087,-500.0,0.00016712,2]
[390527539,1760073052096,-510.22334251,0.00016712,2]
[390527540,1760073052106,-500.0,0.00016712,2]
[390527541,1760073052115,-501.89258517,0.00016712,2]
[390527542,1760073052125,-500.0,0.00016712,2]
[390527543,1760073052134,-500.60334351,0.00016712,2]
[390527544,1760073052143,-3527.12,0.00016712,2]
[390527545,1760073052153,-500.0,0.00016712,2]
[390527546,1760073052162,-502.01975218,0.00016712,2]
[390527547,1760073052172,-500.0,0.00016712,2]
[390527548,1760073052181,-500.37695254,0.00016712,2]
[390527549,1760073052190,-500.0,0.00016712,2]
[390527550,1760073052199,-500.0,0.00016712,2]
[390527551,1760073052208,-500.0,0.00016712,2]
[390527552,1760073052218,-502.054766,0.00016712,2]
[390527553,1760073052227,-500.0,0.00016712,2]
[390527554,1760073052238,-500.0,0.00016712,2]
[390527555,1760073052247,-500.0,0.00016712,2]
[390527556,1760073052256,-501.29956999,0.00016712,2]
[390527557,1760073052265,-500.0,0.00016712,2]
[390527558,1760073052275,-6219.03,0.00016712,2]
[390527559,1760073052284,-500.0,0.00016712,2]
[390527560,1760073052295,-2423.98,0.00016712,2]
[390527561,1760073052304,-501.06021249,0.00016712,2]
[390527562,1760073052314,-500.0,0.00016712,2]
[390527563,1760073052323,-501.44451044,0.00016712,2]
[390527564,1760073052332,-500.0,0.00016712,2]
[390527565,1760073052342,-500.0,0.00016712,2]
[390527566,1760073052351,-1599.0,0.00016712,2]
[390527567,1760073052361,-894.65,0.00016712,2]
[390527568,1760073052371,-501.05543227,0.00016712,2]
[390527569,1760073052380,-500.0,0.00016712,2]
[390527570,1760073052390,-500.0,0.00016712,2]
[390527571,1760073052399,-500.0,0.00016712,2]
[390527572,1760073052409,-500.0,0.00016712,2]
[390527573,1760073052419,-500.0,0.00016712,2]
[390527574,1760073052430,-3689.38,0.00016712,2]
[390527575,1760073052439,-970.99,0.00016712,2]
[390527576,1760073052449,-500.0,0.00016712,2]
[390527577,1760073052458,-500.0,0.00016712,2]
[390527578,1760073052467,-937.72,0.00016712,2]
[390527579,1760073052476,-502.26101463,0.00016712,2]
[390527580,1760073052485,-500.0,0.00016712,2]
[390527581,1760073052495,-500.0,0.00016712,2]
[390527582,1760073052514,-502.17831471,0.00016712,2]
[390527583,1760073052525,-500.0,0.00016712,2]
[390527584,1760073052534,-500.0,0.00016712,2]
[390527585,1760073052544,-502.44828813,0.00016712,2]
[390527586,1760073052556,-5374.97,0.00016712,2]
[390527587,1760073052566,-500.0,0.00016712,2]
[390527588,1760073052575,-500.0,0.00016712,2]
[390527589,1760073052584,-501.96330922,0.00016712,2]
[390527590,1760073052596,-500.0,0.00016712,2]
[390527591,1760073052607,-1179.05,0.00016712,2]
[390527592,1760073052617,-500.0,0.00016712,2]
[390527593,1760073052627,-500.0,0.00016712,2]
[390527594,1760073052637,-1091.46,0.00016712,2]
[390527595,1760073052647,-500.0,0.00016712,2]
[390527596,1760073052657,-500.0,0.00016712,2]
[390527597,1760073052666,-501.93308142,0.00016712,2]
[390527598,1760073052678,-500.0,0.00016712,2]
[390527599,1760073052688,-669.98,0.00016712,2]
[390527600,1760073052697,-500.0,0.00016712,2]
[390527601,1760073052707,-840.06,0.00016712,2]
[390527602,1760073052717,-1569.85,0.00016712,2]
[390527603,1760073052727,-785.66,0.00016712,2]
[390527604,1760073052737,-626.12,0.00016712,2]
[390527605,1760073052747,-500.0,0.00016712,2]
[390527606,1760073052757,-500.50058322,0.00016712,2]
[390527607,1760073052767,-500.0,0.00016712,2]
[390527608,1760073052776,-1455.99,0.00016712,2]
[390527609,1760073052785,-500.0,0.00016712,2]
[390527610,1760073052795,-500.0,0.00016712,2]
[390527611,1760073052803,-1180.58,0.00016712,2]
[390527612,1760073052813,-961.78,0.00016712,2]
[390527613,1760073052822,-500.0,0.00016712,2]
[390527614,1760073052832,-500.0,0.00016712,2]
[390527615,1760073052841,-748.07,0.00016712,2]
[390527616,1760073052850,-500.0,0.00016712,2]
[390527617,1760073052860,-637.86,0.00016712,2]
[390527618,1760073052870,-500.0,0.00016712,2]
[390527619,1760073052879,-500.0,0.00016712,2]
[390527620,1760073052888,-500.0,0.00016712,2]
[390527621,1760073052898,-500.0,0.00016712,2]
[390527622,1760073052907,-500.0,0.00016712,2]
[390527623,1760073052917,-502.31385421,0.00016712,2]
[390527624,1760073052926,-500.0,0.00016712,2]
[390527625,1760073052935,-503.3023207,0.00016712,2]
[390527626,1760073052944,-501.60101146,0.00016712,2]
[390527627,1760073052955,-501.73644491,0.00016712,2]
[390527628,1760073052964,-500.0,0.00016712,2]
[390527629,1760073053183,-500.0,0.00016712,2]
[390527630,1760073053193,-500.60525948,0.00016712,2]
[390527631,1760073053203,-500.0,0.00016712,2]
[390527632,1760073053213,-501.03965201,0.00016712,2]
[390527633,1760073053222,-383.04627743,0.00016712,2]
[390527634,1760073053232,-500.0,0.00016712,2]
[390527635,1760073053245,-1208.26,0.00016712,2]
[390527636,1760073053255,-4376.73,0.00016712,2]
[390527637,1760073053266,-840.96,0.00016712,2]
[390527638,1760073053275,-500.0,0.00016712,2]
[390527639,1760073053285,-500.0,0.00016712,2]
[390527640,1760073053294,-4407.34,0.00016712,2]
[390527641,1760073053304,-500.0,0.00016712,2]
[390527642,1760073053314,-500.0,0.00016712,2]
[390527643,1760073053323,-501.09182636,0.00016712,2]
[390527644,1760073053332,-500.0,0.00016712,2]
[390527645,1760073053342,-500.0,0.00016712,2]
[390527646,1760073053351,-1127.42,0.00016712,2]
[390527647,1760073053361,-603.19,0.00016712,2]
[390527648,1760073053370,-501.33157775,0.00016712,2]
[390527649,1760073053379,-687.76,0.00016712,2]
[390527650,1760073053389,-500.0,0.00016712,2]
[390527651,1760073053398,-500.0,0.00016712,2]
[390527652,1760073053407,-500.0,0.00016712,2]
[390527653,1760073053416,-500.0,0.00016712,2]
[390527654,1760073053426,-509.80328601,0.00016712,2]
[390527655,1760073053435,-500.0,0.00016712,2]
[390527656,1760073053445,-500.0,0.00016712,2]
[390527657,1760073053454,-500.0,0.00016712,2]
[390527658,1760073053463,-501.93253675,0.00016712,2]
[390527659,1760073053473,-842.61,0.00016712,2]
[390527660,1760073053482,-500.0,0.00016712,2]
[390527661,1760073053492,-500.0,0.00016712,2]
[390527662,1760073053502,-514.68683796,0.00016712,2]
[390527663,1760073053511,-500.0,0.00016712,2]
[390527664,1760073053521,-500.0,0.00016712,2]
[390527665,1760073053531,-500.0,0.00016712,2]
[390527666,1760073053541,-2177.95,0.00016712,2]
[390527667,1760073053550,-500.0,0.00016712,2]
[390527668,1760073053561,-500.0,0.00016712,2]
[390527669,1760073053570,-500.0,0.00016712,2]
[390527670,1760073053580,-500.0,0.00016712,2]
[390527671,1760073053589,-500.0,0.00016712,2]
[390527672,1760073053602,-500.0,0.00016712,2]
[390527673,1760073053611,-500.0,0.00016712,2]
[390527674,1760073053620,-500.0,0.00016712,2]
[390527675,1760073053629,-508.07681541,0.00016712,2]
[390527676,1760073053639,-220.45133857,0.00016712,2]
[390527677,1760073053649,-500.0,0.00016712,2]
[390527678,1760073053659,-500.0,0.00016712,2]
[390527679,1760073053669,-500.0,0.00016712,2]
[390527680,1760073053679,-5850.05,0.00016712,2]
[390527681,1760073053691,-500.0,0.00016712,2]
[390527682,1760073053701,-500.0,0.00016712,2]
[390527683,1760073053710,-501.42469803,0.00016712,2]
[390527684,1760073053720,-500.0,0.00016712,2]
[390527685,1760073053729,-500.0,0.00016712,2]
[390527686,1760073053740,-500.0,0.00016712,2]
[390527687,1760073053750,-500.0,0.00016712,2]
[390527688,1760073053760,-500.0,0.00016712,2]
[390527689,1760073053769,-3149.72,0.00016712,2]
[390527690,1760073053779,-1305.47,0.00016712,2]
[390527691,1760073053788,-502.17725709,0.00016712,2]
[390527692,1760073053797,-500.0,0.00016712,2]
[390527693,1760073053806,-500.0,0.00016712,2]
[390527694,1760073053816,-500.0,0.00016712,2]
[390527695,1760073053825,-500.0,0.00016712,2]
[390527696,1760073053835,-501.1690776,0.00016712,2]
[390527697,1760073053845,-500.0,0.00016712,2]
[390527698,1760073053854,-500.0,0.00016712,2]
[390527699,1760073053864,-1011.22,0.00016712,2]
[390527700,1760073053873,-500.0,0.00016712,2]
[390527701,1760073053883,-500.0,0.00016712,2]
[390527702,1760073053892,-501.93488945,0.00016712,2]
[390527703,1760073053902,-1404.53,0.00016712,2]
[390527704,1760073053911,-500.0,0.00016712,2]
[390527705,1760073053921,-826.8,0.00016712,2]
[390527706,1760073053931,-500.0,0.00016712,2]
[390527707,1760073053940,-500.0,0.00016712,2]
[390527708,1760073053950,-849.84,0.00016712,2]
[390527709,1760073053959,-813.97,0.00016712,2]
[390527710,1760073053969,-2544.55,0.00016712,2]
[390527711,1760073053979,-500.0,0.00016712,2]
[390527712,1760073053989,-501.64638071,0.00016712,2]
[390527713,1760073053999,-500.0,0.00016712,2]
[390527714,1760073054008,-501.00529747,0.00016712,2]
[390527715,1760073054018,-500.0,0.00016712,2]
[390527716,1760073054027,-500.0,0.00016712,2]
[390527717,1760073054037,-500.0,0.00016712,2]
[390527718,1760073054047,-1011.01,0.00016712,2]
[390527719,1760073054056,-1923.9,0.00016712,2]
[390527720,1760073054066,-698.81,0.00016712,2]
[390527721,1760073054076,-500.0,0.00016712,2]
[390527722,1760073054085,-1236.4,0.00016712,2]
[390527723,1760073054095,-500.0,0.00016712,2]
[390527724,1760073054104,-500.0,0.00016712,2]
[390527725,1760073054114,-500.0,0.00016712,2]
[390527726,1760073054123,-500.0,0.00016712,2]
[390527727,1760073054132,-500.65017267,0.00016712,2]
[390527728,1760073054141,-536.43,0.00016712,2]
[390527729,1760073054151,-618.51,0.00016712,2]
[390527730,1760073054161,-661.1,0.00016712,2]
[390527731,1760073054171,-560.0,0.00016712,2]
[390527732,1760073054180,-500.0,0.00016712,2]
[390527733,1760073054190,-500.0,0.00016712,2]
[390527734,1760073054199,-500.0,0.00016712,2]
[390527735,1760073054209,-500.0,0.00016712,2]
[390527736,1760073054218,-782.42,0.00016712,2]
[390527737,1760073054228,-500.86053499,0.00016712,2]
[390527738,1760073054239,-598.14865491,0.00016712,2]
[390527739,1760073054249,-500.0,0.00016712,2]
[390527740,1760073054259,-500.0,0.00016712,2]
[390527741,1760073054269,-500.0,0.00016712,2]
[390527742,1760073054279,-500.0,0.00016712,2]
[390527743,1760073054288,-500.0,0.00016712,2]
[390527744,1760073054298,-500.0,0.00016712,2]
[390527745,1760073054308,-500.0,0.00016712,2]
[390527746,1760073054317,-2369.71,0.00016712,2]
[390527747,1760073054327,-707.25,0.00016712,2]
[390527748,1760073054336,-539.06,0.00016712,2]
[390527749,1760073054346,-1042.97,0.00016712,2]
[390527750,1760073054355,-500.0,0.00016712,2]
[390527751,1760073054365,-500.0,0.00016712,2]
[390527752,1760073054374,-2000.7,0.00016712,2]
[390527753,1760073054384,-791.06,0.00016712,2]
[390527754,1760073054393,-500.0,0.00016712,2]
[390527755,1760073054402,-500.0,0.00016712,2]
[390527756,1760073054411,-502.45846065,0.00016712,2]
[390527757,1760073054420,-500.0,0.00016712,2]
[390527758,1760073054429,-1747.02,0.00016712,2]
[390527759,1760073054439,-500.0,0.00016712,2]
[390527760,1760073054448,-500.0,0.00016712,2]
[390527761,1760073054457,-502.29888454,0.00016712,2]
[390527762,1760073054467,-500.0,0.00016712,2]
[390527763,1760073054476,-500.0,0.00016712,2]
[390527764,1760073054486,-500.0,0.00016712,2]
[390527765,1760073054496,-3755.62,0.00016712,2]
[390527766,1760073054505,-500.0,0.00016712,2]
[390527767,1760073054515,-500.0,0.00016712,2]
[390527768,1760073054524,-500.0,0.00016712,2]
[390527769,1760073054533,-500.0,0.00016712,2]
[390527770,1760073054543,-500.0,0.00016712,2]
[390527771,1760073054552,-500.0,0.00016712,2]
[390527772,1760073054562,-500.0,0.00016712,2]
[390527773,1760073054571,-500.0,0.00016712,2]
[390527774,1760073054588,-500.91488947,0.00016712,2]
[390527775,1760073054605,-500.0,0.00016712,2]
[390527776,1760073054615,-500.0,0.00016712,2]
[390527777,1760073054624,-2836.0,0.00016726,2]
[390527778,1760073054635,-300.0,0.00016766,2]
[390527779,1760073054647,-300.0,0.00016766,2]
[390527780,1760073054657,-300.0,0.00016766,2]
[390527781,1760073054667,-300.0,0.00016766,2]
[390527782,1760073054678,-300.0,0.00016766,2]
[390527783,1760073054688,-300.0,0.00016766,2]
[390527784,1760073054697,-300.0,0.00016766,2]
[390527785,1760073054707,-300.0,0.00016766,2]
[390527786,1760073054716,-300.0,0.00016766,2]
[390527787,1760073054726,-300.0,0.00016766,2]
[390527788,1760073054736,-300.0,0.00016766,2]
[390527789,1760073054746,-300.0,0.00016766,2]
[390527790,1760073054756,-300.0,0.00016766,2]
[390527791,1760073054765,-300.0,0.00016766,2]
[390527792,1760073054775,-300.0,0.00016766,2]
[390527793,1760073054784,-600.0,0.00016766,2]
[390527794,1760073054793,-500.0,0.00016773,2]
[390527795,1760073054804,-151.0,0.000168,2]
[390527796,1760073054813,-199.649929,0.000168,6]
[390527797,1760073054823,-199.649929,0.000168,6]
[390527798,1760073054833,-199.649929,0.000168,6]
[390527799,1760073054843,-199.649929,0.000168,6]
[390527800,1760073054853,-199.649929,0.000168,6]
[390527801,1760073054866,-154.882853,0.000168,6]
[390527802,1760073054878,-154.882853,0.000168,6]
[390527803,1760073054892,-154.882853,0.000168,6]
[390527804,1760073054901,-2233.99644808,0.00016881,2]
[390527805,1760073054911,-177.16033443,0.00016886,2]